Cogmind - Beta 13 @@@ ROGUE MODE // 2024.03.14 @ 21:31:17 Player: NitroKuite Result: Destroyed by G-34 Mercenary with Small Laser Performance ------------- Evolutions (0) 0 Regions Visited (1) 200 Robots Destroyed (3) 15 Value Destroyed (75) 75 Prototype IDs (0) 0 Alien Tech Used (0) 0 Bonus (0) 0 TOTAL SCORE: 290 Bonus ------- None Cogmind --------- Core Integrity 0/250 Matter 278/300 Energy 14/100 System Corruption 0% Temperature Cool (6) Movement Walking (120) Location -10/Materials Parts ------- > --- POWER (1) -------- (None) > --- PROPULSION (2) --- Aluminum Leg > --- UTILITY (2) ------ Small Storage Unit Improved Terrain Scanner > --- WEAPON (2) ------- (None) > --- INVENTORY (8) ---- (None) Peak State ------------ > --- POWER ------------ Light Ion Engine > --- PROPULSION ------- Aluminum Leg Aluminum Leg > --- UTILITY ---------- Improved Terrain Scanner Seismic Detector > --- WEAPON ----------- Medium Laser Assault Rifle > --- INVENTORY -------- (None) [Rating: 9] Favorites ----------- Power Light Ion Engine Engine Light Ion Engine Propulsion Aluminum Leg Leg Aluminum Leg Utility Improved Terrain Scanner Device Improved Terrain Scanner Storage Small Storage Unit Weapon Assault Rifle Energy Gun Medium Laser Ballistic Gun Assault Rifle Special Weapon Mining Laser Build | -11 -10 ------- Run | Yrd Mat Slots Evolved . | . . Power . | . . Propulsion . | . . Utility . | . . Weapon . | . . Parts Attached 11 | 7 4 Power 1 | 1 . Engine 1 | 1 . Core . | . . Reactor . | . . Propulsion 2 | 2 . Treads . | . . Leg 2 | 2 . Wheel . | . . Hover . | . . Flight . | . . Utility 3 | 2 1 Device 2 | 2 . Storage 1 | . 1 Processor . | . . Hackware . | . . Protection . | . . Artifact . | . . Weapon 5 | 2 3 Energy Gun 1 | 1 . Energy Cannon . | . . Ballistic Gun 1 | 1 . Ballistic Cannon . | . . Launcher . | . . Special Weapon 3 | . 3 Impact Weapon . | . . Slashing Weapon . | . . Piercing Weapon . | . . Special Melee Weapon . | . . Unidentified Prototypes . | . . Parts Lost 8 | . 8 Power 1 | . 1 Propulsion 1 | . 1 Utility 1 | . 1 Weapon 5 | . 5 Highest Loss Streak 6 | . 6 To Critical Strikes . | . . Average Slot Usage (%) 85 | . 85 Engine 8 | . 8 Leg 28 | . 28 Device 20 | . 20 Storage 2 | . 2 Energy Gun 11 | . 11 Ballistic Gun 12 | . 12 Naked Turns . | . . Heaviest Build 10 | 9 10 Greatest Support 20 | 20 20 Greatest Overweight (x) . | . . Average Overweight (x) . | . . Largest Inventory Capacity 8 | 5 8 Average Capacity 5 | 5 5 Most Carried 2 | 2 1 Average Carried . | . . Final Capacity 8 | 5 8 Final Carried . | . . Class Distribution -------------------- 100% | Mutant Dominant Class ---------------- Mutant | -10/Materials Resources | -11 -10 ----------- Run | Yrd Mat Matter Collected 296 | 282 14 Remotely . | . . Salvage Created 99 | 56 43 Parts 9 | 7 2 Haulers Intercepted . | . . Recyclers Shooed . | . . Parts Field Recycled . | . . Retrieved Matter . | . . Parts Self-Destructed . | . . Prevented . | . . Kills | -11 -10 ------- Run | Yrd Mat Combat Hostiles Destroyed 2 | 1 1 Guns 2 | 1 1 Classes Destroyed 2 | 2 . Tunneler 1 | 1 . Grunt 2 | 1 1 Best Kill Streak 2 | 2 1 Combat Bots Only 1 | 1 1 Max Kills in Single Turn 2 | 2 1 Gunslinging . | . . Exploded . | . . Melee . | . . Uniques/NPCs Destroyed . | . . Combat | -11 -10 -------- Run | Yrd Mat Hostile Shots Fired 92 | 6 86 Missed 29 | 2 27 Damage Taken 768 | 45 723 Core 251 | 10 241 Absorbed by Shields . | . . Core Remaining (%) 96 | 96 . Volleys Fired 16 | 4 12 Largest 2 | 2 2 Hottest 70 | 70 70 Shots Fired 32 | 8 24 Gun 32 | 8 24 Cannon . | . . Launcher . | . . Special . | . . Kinetic 16 | 4 12 Thermal 16 | 4 12 Explosive . | . . Electromagnetic . | . . Robot Hit Streak 4 | 4 3 Robot Miss Streak 7 | 1 7 Penetration Max . | . . Secondary Targets . | . . Shots Hit Robots 15 | 6 9 Core Hits 6 | 3 3 Critical Kills . | . . Critical Parts Destroyed . | . . Critical Strikes . | . . Melee Attacks . | . . Impact . | . . Slashing . | . . Piercing . | . . Sneak Attacks . | . . Combat Hostiles . | . . Follow-up Attacks . | . . Damage Inflicted 211 | 84 127 Guns 211 | 84 127 Cannons . | . . Explosions . | . . Melee . | . . Ramming . | . . Kinetic 62 | 34 28 Thermal 149 | 50 99 Explosive . | . . Electromagnetic . | . . Impact . | . . Slashing . | . . Piercing . | . . Highest Corruption . | . . Average Corruption . | . . Corruption Purged . | . . Corruption Blocked . | . . Overload Shots . | . . Overflow Damage . | . . Projectiles . | . . Explosions . | . . Melee . | . . Knockbacks . | . . Impact . | . . Kinetic . | . . Secondary . | . . Self-Inflicted Damage . | . . Shots . | . . Rammed . | . . Targets Rammed . | . . Kicked . | . . Crushed . | . . Highest Temperature 91 | 80 91 Average Temperature 29 | 45 23 Received Heat Transfer 426 | 24 402 Siege Activations . | . . Robots Corrupted . | . . Combat Hostiles . | . . Parts Fried . | . . Impact Corruptions . | . . Robots Melted . | . . Combat Hostiles . | . . Parts Melted . | . . Heat Transferred 444 | 148 296 Parts Sabotaged . | . . Parts Stolen . | . . Parts Stripped . | . . Power Chain Reactions . | . . Alert | -11 -10 ------- Run | Yrd Mat Peak Influence 46 | 25 46 Initial 16 | . 16 Average 19 | 4 30 Maximum Alert Level . | . . Low Security (%) 100 | 100 100 Level 1 . | . . Level 2 . | . . Level 3 . | . . Level 4 . | . . Level 5 . | . . High Security . | . . Max Security . | . . Squads Dispatched 1 | . 1 Investigation . | . . Extermination . | . . Reinforcement 1 | . 1 Assault . | . . Garrison . | . . Intercept . | . . Searches Triggered . | . . Construction Impeded . | . . Haulers Reinforced . | . . Active Scanning Responses . | . . Cargo Convoy Interrupts . | . . Stealth | -11 -10 --------- Run | Yrd Mat Distress Signals . | . . Communications Jammed . | . . Distress Signals . | . . Times Spotted 7 | 1 6 Peak Tracking Total 4 | 1 4 Tactical Retreats . | . . Traps | -11 -10 ------- Run | Yrd Mat Traps Triggered . | . . Indirectly . | . . Trap Hack Attempts . | . . Triggered . | . . Disarmed . | . . Reprogrammed . | . . Reused . | . . Traps Extracted . | . . Installed . | . . Triggered . | . . Machines | -11 -10 ---------- Run | Yrd Mat Machines Disabled . | . . Max in Single Turn . | . . Machines Repaired . | . . Machines Dismantled . | . . Machines Sabotaged . | . . Overloaded Fab Kills . | . . Hacking | -11 -10 --------- Run | Yrd Mat Machines Accessed 2 | . 2 Terminals 1 | . 1 Fabricators . | . . Repair Stations . | . . Recycling Units 1 | . 1 Scanalyzers . | . . Garrison Access . | . . Total Hacks 6 | . 6 Successful 5 | . 5 Failed 1 | . 1 Catastrophic . | . . Database Lockouts . | . . Manual . | . . Terminals 4 | . 4 Fabricators . | . . Repair Stations . | . . Recycling Units 2 | . 2 Scanalyzers . | . . Garrison Access . | . . Terminal Hacks 4 | . 4 Record 2 | . 2 Reinforcement Status 1 | . 1 Hauler Manifests 1 | . 1 Fabricator Hacks . | . . Repair Station Hacks . | . . Recycling Unit Hacks 1 | . 1 Retrieve Matter 1 | . 1 Scanalyzer . | . . Garrison Access Hacks . | . . Unauthorized Hacks . | . . Terminals . | . . Fabricators . | . . Repair Stations . | . . Recycling Units . | . . Scanalyzers . | . . Garrison Access . | . . Data Cores Recovered . | . . Used . | . . Hacking Detections 2 | . 2 Full Trace Events . | . . Feedback Events . | . . Feedback Blocked . | . . Robot Schematics Acquired . | . . Robots Built . | . . Authchips . | . . Time . | . . Total Robot Build Rating . | . . Part Schematics Acquired . | . . Parts Built . | . . Authchips . | . . Time . | . . Total Part Build Rating . | . . Parts Repaired . | . . Time . | . . Parts Recycled . | . . Recycled Matter . | . . Retrieved Matter . | . . Retrieved Components . | . . Parts Scanalyzed . | . . Part Schematics Acquired . | . . Parts Damaged . | . . Bothacking | -11 -10 ------------ Run | Yrd Mat Used RIF Installer . | . . Robots Hacked . | . . Non-combat . | . . Combat . | . . Robot Hacks Applied . | . . Relay Couplers Released . | . . Fabnet Peak Effective % . | . . Robots Rewired . | . . Allies Hacked . | . . Hacks Repelled . | . . Allies | -11 -10 -------- Run | Yrd Mat Total Allies . | . . Largest Group . | . . Highest-Rated Group . | . . Highest-Rated Ally . | . . Total Orders . | . . Ally Attacks . | . . Total Damage . | . . Kills . | . . Allies Corrupted . | . . Allies Melted . | . . Intel | -11 -10 ------- Run | Yrd Mat Robot Analysis Total . | . . Derelict Logs Recovered . | . . Drone Launches . | . . Drone Recoveries . | . . Exploration | -11 -10 ------------- Run | Yrd Mat Turns Passed 282 | 118 164 Spaces Moved 192 | 91 101 Core 22 | 22 . Treads . | . . Legs 170 | 69 101 Wheels . | . . Hover . | . . Flight . | . . Fastest Speed 50 | 50 120 Average Speed 111 | 103 120 Slowest Speed 120 | 120 120 Overloaded Moves . | . . Propulsion Burnouts . | . . Robots Hopped . | . . Cave-ins Triggered . | . . Exploration Rate (%) 11 | 8 15 Regions Visited 1 Branch Regions . Pre-discovered Areas . | . . Known Exits Taken . | . . Unknown Exits Taken 1 | 1 . Scrap Searched . | . . Spaces Dug . | . . Terrain Destroyed . | . . Melee . | . . Projectile . | . . AOE . | . . Terrain Rammed . | . . Walls Destroyed . | . . Machines Disabled . | . . Actions | -11 -10 --------- Run | Yrd Mat Total 224 | 106 118 Wait . | . . Move 191 | 90 101 Hop . | . . Pick Up 6 | 5 1 Fast Attach 5 | 2 3 Attach 6 | 5 1 Detach . | . . Swap . | . . Drop . | . . Fire 16 | 4 12 Melee . | . . Ram . | . . Kick . | . . Crush . | . . Escape Stasis . | . . Rewire . | . . Trap . | . . Miscellaneous . | . . Route ------- -11/Scrapyard -10/Materials History --------- Turn | Location | Event 2 | -11/Scrapyard | Met Revision 17 81 | -11/Scrapyard | Discovered new exit (range 8) 119 | -11/Scrapyard | Entered Materials 244 | -10/Materials | Core integrity fell below 50% 275 | -10/Materials | Core integrity fell below 20% 283 | -10/Materials | Destroyed by G-34 Mercenary with Small Laser Last Messages --------------- (2 escorts) Connecting with Recycling Unit... Terminal unresponsive. Seismic Detector destroyed. G-34 Mercenary destroyed. Lgt. Ion Engine destroyed. Acquired 14 matter. Acquired Sml. Storage Unit. The Sml. Storage Unit has expanded your inventory capacity. Items held in inventory do not count towards total mass and therefore cannot slow you down. Acquired Mining Laser. Med. Laser destroyed. Assault Rifle destroyed. Mining Laser destroyed. Acquired Mining Laser. Mining Laser destroyed. M-13 Machinist repairs G-34 Mercenary. Aluminum Leg destroyed. Map ----- +----------------------------------------------------+ | | | | | | | | | | | | | | | | | | | | | | | | | | | | | | | ?????????????????????#??????????????#????????????? | | ???????????????#???#??????????#???????????????#??? | | ???????????????????????#?????##??????????????????? | | ?????????????????????????#??????#????????????????? | | ?????????? ???#????????#?????????#?#?????#???????? | | ???????????????????????????????????#??#?#????????? | | ??????????????????????#?????#????????????????????? | | ??????????????#???############????????????#??????? | | ???????????######## # #??#????#######?????? | | ???????????# # # [ ######### !#?????? | | ???????????# # #g @ ## """ # "" #?????? | | ???????##??# + /mggg |## "T" |+ "" #??? ?? | | ???????????# "T" # # ## # "T #?????? | | ???????????# """ # # ! ## # "" #?????? | | ???????????# # ######### # "" #??? ?? | | ???????????######## #???????# *% # #????? | | ??????????????????# ############+####+####### | | ??????????????????# = | | ????????#?????#???# | | ??????????????????# | | ???????????????#??# ############+####+####### | | ???????????? ???#?# #?????#### #? ? ??#??? | | ????? ??????????#?# #????#???# #?? ??????? | | ?????????? ???????# #?##?????#"" #???[ ?????? | | ??????????????????# #????#?#?#"Y #???? #????? | | ???????????? ????## #????????#"" #?????#??? ? | | ?????????????????? ##???????# #??????????? | | ?????????????????? ??#??#???########??????????? | | ?????????????? ?? #??????#?#????????????#????? | | ?????????????????## ?????#??????????? ?????????? | | ??????????????????# ????????????????#??????????? | | ??????????????????# ???????????????????????????? | | ??????????????????# #???????#??????????????????? | | ??????????????????????????????#??????????????????? | | ???????????????????????????#?????????????????????? | +----------------------------------------------------+ Best States ------------- Heat Dissipation 25 Energy Generation 10 Energy Capacity 125 Matter Stores 300 Matter Capacity 300 Sight Range 16 Terrain Scan Range 16 Terrain Scan Density 10 Evasion (%) 55 Item Schematics ----------------- None Robot Schematics ------------------ None Fabricated ------------ Nothing Alien Tech Used ----------------- None Achievements -------------- Shopping List Challenges ------------ None Game ------ Seed GravitySingularityBeamcaster Manual? 0 Play Time 00:08:22 Cumulative 0.9 hours Start 2024.03.14 @ 21:24:16 End 2024.03.14 @ 21:31:17 Sessions 1 Manual Loads 0 Difficulty Rogue Special Mode None Game No. 2 Rogue 2 Adventurer 0 Explorer 0 Win Type - Total 0 Types 0/0/0/0/0/0/0/0/0 Lore% 0 Gallery% 2 Achievement% 3 Wizard Run 0 Options --------- Layout 1 ASCII 0 Keyboard 1 Movement Numpad Keybinds 0 Fullscreen 1 Font 32/Tamsyn Map View 50x35 Zoom Use 0% Tactical HUD 0 Map Filters NONE Filters NONE Steam 1 RUN: 53501b9d-8873-4fc1-a176-220cfb29574c